fUSD/lending_fUSD_20241227
["ID","MTS","AMOUNT","RATE_DAILY","PERIOD"]
[346798067,1735296641569,-500.0,0.0001089,2]
[346798069,1735296641578,-500.0,0.0001089,2]
[346798071,1735296641587,-4340.63,0.0001089,2]
[346798073,1735296641597,-2072.16,0.0001089,2]
[346798075,1735296641606,-500.0,0.0001089,2]
[346798077,1735296641615,-500.0,0.0001089,2]
[346798079,1735296641625,-500.0,0.0001089,2]
[346798081,1735296641635,-500.0,0.0001089,2]
[346798083,1735296641645,-500.0,0.0001089,2]
[346798085,1735296641655,-500.0,0.0001089,2]
[346798087,1735296641665,-500.0,0.0001089,2]
[346798089,1735296641674,-1037.14,0.0001089,2]
[346798091,1735296641684,-3753.34,0.0001089,2]
[346798093,1735296641695,-4728.21,0.0001089,2]
[346798095,1735296641704,-500.0,0.0001089,2]
[346798097,1735296641714,-500.0,0.0001089,2]
[346798099,1735296641723,-96190.1688,0.00010891,2]
[346798101,1735296641733,-8503.3317,0.00010891,2]
[346798103,1735296641743,-32360.9135,0.00010891,2]
[346798105,1735296641752,-500.0,0.00010891,2]
[346798107,1735296641762,-23958.0217,0.00010891,2]
[346798109,1735296641771,-2188.5297,0.00010891,2]
[346798111,1735296641782,-500.0,0.00010891,2]
[346798113,1735296641791,-897.1,0.00010891,2]
[346798115,1735296641800,-500.0,0.00010891,2]
[346798117,1735296641809,-59.2849873,0.00010891,2]
[346798120,1735296641825,-534.7143588,0.00010891,2]
[346798123,1735296641846,-1073.5006539,0.00010891,2]
[346798125,1735296641856,-500.0,0.00010891,2]
[346798127,1735296641865,-793.92,0.00010891,2]
[346798128,1735296641874,-202.06161493,0.00010891,2]
[346798129,1735296641883,-1144.01,0.00010891,2]
[346798131,1735296641893,-500.0,0.00010891,2]
[346798133,1735296641902,-604.43,0.00010891,2]
[346798135,1735296641912,-7.97153117,0.00010891,2]
[346798138,1735296641935,-492.02846883,0.00010891,2]
[346798140,1735296641945,-1889.43,0.00010891,2]
[346798142,1735296641953,-1868.05,0.00010891,2]
[346798144,1735296641962,-820.4,0.00010891,2]
[346798146,1735296641971,-1052.8,0.00010891,2]
[346798148,1735296641981,-668.06,0.00010891,2]
[346798150,1735296641990,-933.83,0.00010891,2]
[346798152,1735296642000,-500.0,0.00010891,2]
[346798154,1735296642010,-1096.44,0.00010891,2]
[346798156,1735296642019,-500.0,0.00010891,2]
[346798158,1735296642028,-500.0,0.00010891,2]
[346798160,1735296642038,-1609.25,0.00010891,2]
[346798162,1735296642047,-500.0,0.00010891,2]
[346798164,1735296642056,-915.65,0.00010891,2]
[346798166,1735296642066,-500.0,0.00010891,2]
[346798168,1735296642076,-656.96,0.00010891,2]
[346798170,1735296642086,-1598.41,0.00010891,2]
[346798172,1735296642097,-2061.49,0.00010891,2]
[346798174,1735296642107,-500.0,0.00010891,2]
[346798176,1735296642116,-1994.55,0.00010891,2]
[346798178,1735296642125,-6726.55,0.00010891,2]
[346798179,1735296642135,-1253.29,0.00010891,2]
[346798181,1735296642144,-1951.45,0.00010891,2]
[346798183,1735296642154,-500.0,0.00010891,2]
[346798186,1735296642163,-563.93,0.00010891,2]
[346798187,1735296642173,-502.5009959,0.00010891,2]
[346798190,1735296642183,-682.73,0.00010891,2]
[346798192,1735296642193,-500.0,0.00010891,2]
[346798193,1735296642203,-508.06740123,0.00010891,2]
[346798195,1735296642212,-4682.56,0.00010891,2]
[346798197,1735296642221,-500.0,0.00010891,2]
[346798199,1735296642230,-654.37,0.00010891,2]
[346798201,1735296642240,-500.0,0.00010891,2]
[346798203,1735296642250,-982.02,0.00010891,2]
[346798205,1735296642260,-505.09604517,0.00010891,2]
[346798207,1735296642269,-500.0,0.00010891,2]
[346798209,1735296642278,-571.14975515,0.00010891,2]
[346798211,1735296642288,-728.47,0.00010891,2]
[346798213,1735296642297,-515.6062027,0.00010891,2]
[346798215,1735296642307,-686.0,0.00010891,2]
[346798217,1735296642316,-507.48766273,0.00010891,2]
[346798219,1735296642326,-3080.13,0.00010891,2]
[346798221,1735296642335,-500.0,0.00010891,2]
[346798223,1735296642347,-500.0,0.00010891,2]
[346798225,1735296642357,-500.0,0.00010891,2]
[346798227,1735296642366,-755.63,0.00010891,2]
[346798229,1735296642375,-500.0,0.00010891,2]
[346798231,1735296642383,-500.0,0.00010891,2]
[346798233,1735296642393,-287.37833137,0.00010891,2]
[346798235,1735296642402,-557.79585254,0.00010891,2]
[346798237,1735296642412,-500.0,0.00010891,2]
[346798239,1735296642422,-500.0,0.00010891,2]
[346798241,1735296642435,-1065.44,0.00010891,2]
[346798243,1735296642445,-154.285774,0.00010891,2]
[346798245,1735296642455,-157.91262,0.00010891,2]
[346798247,1735296642465,-501.41757041,0.00010891,2]
[346798249,1735296642475,-2945.979265,0.00010891,2]
[346798252,1735296642484,-500.0,0.00010891,2]
[346798254,1735296642494,-2714.85,0.00010891,2]
[346798256,1735296642504,-1429.08,0.00010891,2]
[346798258,1735296642513,-2932.75663,0.00010891,2]
[346798260,1735296642523,-505.18290836,0.00010891,2]
[346798262,1735296642534,-500.0,0.00010891,2]
[346798264,1735296642543,-1394.76,0.00010891,2]
[346798266,1735296642552,-21655.35,0.00010891,2]
[346798268,1735296642562,-614.62618444,0.00010891,2]
[346798270,1735296642571,-1146.25,0.00010891,2]
[346798272,1735296642581,-1572.92,0.00010891,2]
[346798274,1735296642590,-500.0,0.00010891,2]
[346798275,1735296642599,-501.65980031,0.00010891,2]
[346798277,1735296642608,-2548.8,0.00010891,2]
[346798279,1735296642618,-500.0,0.00010891,2]
[346798282,1735296642627,-501.85648211,0.00010891,2]
[346798284,1735296642636,-500.9251545,0.00010891,2]
[346798286,1735296642645,-936.27,0.00010891,2]
[346798288,1735296642655,-935.33,0.00010891,2]
[346798290,1735296642664,-2560.52,0.00010891,2]
[346798292,1735296642674,-500.0,0.00010891,2]
[346798294,1735296642683,-500.0,0.00010891,2]
[346798296,1735296642693,-765.6,0.00010891,2]
[346798298,1735296642702,-501.22907656,0.00010891,2]
[346798300,1735296642711,-3076.3,0.00010891,2]
[346798302,1735296642720,-500.0,0.00010891,2]
[346798304,1735296642730,-502.73430013,0.00010891,2]
[346798306,1735296642739,-507.23,0.00010891,2]
[346798308,1735296642748,-1418.57,0.00010891,2]
[346798310,1735296642758,-3648.75,0.00010891,2]
[346798312,1735296642768,-303.33525518,0.00010891,2]
[346798314,1735296642778,-501.05256816,0.00010891,2]
[346798316,1735296642788,-1901.77,0.00010891,2]
[346798318,1735296642797,-500.0,0.00010891,2]
[346798320,1735296642806,-500.67845109,0.00010891,2]
[346798322,1735296642816,-500.0,0.00010891,2]
[346798324,1735296642825,-568.15,0.00010891,2]
[346798326,1735296642834,-557.77715768,0.00010891,2]
[346798328,1735296642844,-501.74405012,0.00010891,2]
[346798330,1735296642853,-849.16,0.00010891,2]
[346798332,1735296642862,-501.55510905,0.00010891,2]
[346798334,1735296642871,-500.81299638,0.00010891,2]
[346798336,1735296642880,-500.0,0.00010891,2]
[346798338,1735296642890,-1277.52,0.00010891,2]
[346798340,1735296642900,-524.88,0.00010891,2]
[346798342,1735296642909,-500.0,0.00010891,2]
[346798344,1735296642919,-3732.6,0.00010891,2]
[346798346,1735296642928,-500.0,0.00010891,2]
[346798348,1735296642936,-501.04865408,0.00010891,2]
[346798350,1735296642945,-1953.59,0.00010891,2]
[346798352,1735296642955,-505.393119,0.00010891,2]
[346798354,1735296642965,-1504.2,0.00010891,2]
[346798356,1735296642974,-500.0,0.00010891,2]
[346798358,1735296642983,-3043.2,0.00010891,2]
[346798360,1735296642993,-500.0,0.00010891,2]
[346798362,1735296643003,-1350.84,0.00010891,2]
[346798364,1735296643013,-501.32732649,0.00010891,2]
[346798366,1735296643022,-500.0,0.00010891,2]
[346798368,1735296643032,-500.0,0.00010891,2]
[346798370,1735296643041,-641.46048593,0.00010891,2]
[346798372,1735296643051,-1780.57,0.00010891,2]
[346798374,1735296643060,-1112.44,0.00010891,2]
[346798376,1735296643070,-1077.75,0.00010891,2]
[346798377,1735296643079,-1000.07,0.00010891,2]
[346798379,1735296643089,-540.31,0.00010891,2]
[346798382,1735296643102,-1393.81,0.00010891,2]
[346798383,1735296643111,-912.46,0.00010891,2]
[346798385,1735296643120,-1399.64,0.00010891,2]
[346798387,1735296643130,-3085.66,0.00010891,2]
[346798389,1735296643139,-2392.34,0.00010891,2]
[346798391,1735296643151,-17530.52,0.00010891,2]
[346798393,1735296643159,-547.39,0.00010891,2]
[346798395,1735296643168,-1553.73,0.00010891,2]
[346798397,1735296643178,-1477.16,0.00010891,2]
[346798399,1735296643188,-3490.55,0.00010891,2]
[346798401,1735296643197,-633.85,0.00010891,2]
[346798403,1735296643206,-2031.23,0.00010891,2]
[346798405,1735296643216,-1754.2,0.00010891,2]
[346798407,1735296643225,-2352.74,0.00010891,2]
[346798409,1735296643235,-1019.49,0.00010891,2]
[346798411,1735296643245,-2627.84,0.00010891,2]
[346798413,1735296643254,-1690.57,0.00010891,2]
[346798415,1735296643263,-500.0,0.00010891,2]
[346798417,1735296643273,-500.0,0.00010891,2]
[346798419,1735296643282,-1493.66,0.00010891,2]
[346798421,1735296643291,-2001.19,0.00010891,2]
[346798423,1735296643300,-1971.05,0.00010891,2]
[346798425,1735296643309,-12809.01,0.00010891,2]
[346798427,1735296643318,-500.0,0.00010891,2]
[346798429,1735296643327,-1448.93,0.00010891,2]
[346798431,1735296643336,-11522.79,0.00010891,2]
[346798433,1735296643347,-1236.39,0.00010891,2]
[346798435,1735296643357,-500.0,0.00010891,2]
[346798437,1735296643366,-4083.6,0.00010891,2]
[346798439,1735296643376,-500.0,0.00010891,2]
[346798441,1735296643385,-500.0,0.00010891,2]
[346798443,1735296643394,-500.0,0.00010891,2]
[346798445,1735296643403,-500.0,0.00010891,2]
[346798447,1735296643413,-500.0,0.00010891,2]
[346798449,1735296643424,-2654.02,0.00010891,2]
[346798450,1735296643437,-2376.52,0.00010891,2]
[346798452,1735296643446,-1910.22,0.00010891,2]
[346798454,1735296643455,-1442.46,0.00010891,2]
[346798456,1735296643464,-1783.02,0.00010891,2]
[346798458,1735296643475,-500.0,0.00010891,2]
[346798459,1735296643484,-967.23,0.00010891,2]
[346798460,1735296643493,-2271.89,0.00010891,2]
[346798461,1735296643503,-3319.89,0.00010891,2]
[346798462,1735296643513,-500.0,0.00010891,2]
[346798463,1735296643523,-1751.61,0.00010891,2]
[346798464,1735296643532,-184.29561738,0.00010892,2]
[346798465,1735296643543,-4871.2341,0.00010892,2]
[346798466,1735296643552,-158.98809171,0.00010898,4]
[346798467,1735296643562,-666.122719,0.00010898,4]
[346798468,1735296643572,-666.122719,0.00010898,4]
[346798469,1735296643581,-666.122719,0.00010898,4]
[346798470,1735296643592,-666.122719,0.00010898,3]
[346798471,1735296643603,-666.122719,0.00010898,3]
[346798472,1735296643615,-666.122719,0.00010898,3]
[346798474,1735296643625,-666.122719,0.00010898,3]
[346798476,1735296643634,-666.122719,0.00010898,3]
[346798478,1735296643643,-666.122719,0.00010898,3]
[346798480,1735296643653,-666.122719,0.00010898,3]
[346798482,1735296643663,-666.122719,0.00010898,3]
[346798484,1735296643673,-666.122719,0.00010898,3]
[346798486,1735296643683,-666.122719,0.00010898,3]
[346798488,1735296643693,-666.122719,0.00010898,3]
[346798490,1735296643703,-444.122719,0.00010898,3]
[346798492,1735296643712,-444.122719,0.00010898,3]
[346798494,1735296643721,-444.122719,0.00010898,3]
[346798495,1735296643730,-444.122719,0.00010898,3]
[346798497,1735296643740,-444.122719,0.00010898,3]
[346798499,1735296643750,-444.122719,0.00010898,3]
[346798502,1735296643760,-444.122719,0.00010898,3]
[346798503,1735296643770,-444.122719,0.00010898,3]
[346798506,1735296643780,-444.122719,0.00010898,3]
[346798508,1735296643789,-234.122719,0.00010898,3]
[346798510,1735296643798,-208.122719,0.00010898,3]
[346798512,1735296643807,-2000.0,0.00010898,2]
[346798514,1735296643816,-200.0,0.00010898,2]
[346798516,1735296643825,-500.0,0.000109,3]
[346798518,1735296643834,-184.29561735,0.00010925,2]
[346798520,1735296643847,-500.0,0.00010958,2]
[346798522,1735296643858,-500.0,0.00010958,2]
[346798524,1735296643868,-500.0,0.00010958,2]
[346798526,1735296643879,-192.99122114,0.00010958,2]
[346798528,1735296643889,-500.0,0.00010958,2]
[346798530,1735296643899,-500.0,0.00010958,2]
[346798532,1735296643909,-500.0,0.00010958,2]
[346798534,1735296643919,-500.0,0.00010958,2]
[346798536,1735296643929,-500.0,0.00010958,2]
[346798538,1735296643939,-500.0,0.00010958,2]
[346798540,1735296643949,-7500.0,0.00010958,2]
[346798542,1735296643958,-184.29561735,0.00010959,2]
[346798544,1735296643968,-54737.0,0.00010959,2]
[346798546,1735296643978,-6435.44,0.00010959,2]
[346798547,1735296643988,-150.0,0.00010959,2]
[346798548,1735296643998,-501.34631601,0.00010973,2]
[346798549,1735296644007,-500.0,0.00010973,2]
[346798550,1735296644017,-501.69546733,0.00010973,2]
[346798551,1735296644026,-238.70979583,0.00010973,2]
[346798552,1735296644035,-356.69347738,0.00010973,2]
[346798553,1735296644045,-407.15929525,0.00010973,2]
[346798554,1735296644055,-500.0,0.00010973,2]
[346798555,1735296644064,-204.11198065,0.00010973,2]
[346798556,1735296644074,-305.61470269,0.00010973,2]
[346798557,1735296644084,-500.0,0.00010973,2]
[346798558,1735296644096,-1730.88,0.00010989,2]
[346798559,1735296644106,-571.94,0.00010989,2]
[346798560,1735296644115,-2980.6,0.00010989,2]
[346798561,1735296644125,-2200.63,0.00010989,2]
[346798562,1735296644135,-4624.01,0.00010989,2]
[346798563,1735296644144,-4459.78,0.00010989,2]
[346798564,1735296644154,-3400.99,0.00010989,2]
[346798565,1735296644163,-8353.81,0.00010989,2]
[346798566,1735296644173,-4756.8,0.00010989,2]
[346798568,1735296644182,-7500.0,0.00010989,2]
[346798570,1735296644191,-7500.0,0.00010989,2]
[346798572,1735296644201,-21610.66,0.00010989,2]
[346798574,1735296644210,-7500.0,0.00010989,2]
[346798576,1735296644220,-7500.0,0.00010989,2]
[346798578,1735296644229,-7500.0,0.00010989,2]
[346798580,1735296644239,-500.0,0.0001099,2]
[346798581,1735296644248,-500.0,0.0001099,2]
[346798582,1735296644258,-500.0,0.0001099,2]
[346798583,1735296644267,-500.0,0.0001099,2]
[346798584,1735296644275,-500.0,0.0001099,2]
[346798585,1735296644284,-500.0,0.0001099,2]
[346798586,1735296644296,-500.0,0.0001099,2]
[346798587,1735296644306,-500.0,0.0001099,2]
[346798588,1735296644315,-500.0,0.0001099,2]
[346798589,1735296644325,-500.0,0.0001099,2]
[346798590,1735296644334,-500.0,0.0001099,2]
[346798591,1735296644346,-500.0,0.0001099,2]
[346798592,1735296644355,-1198.9,0.0001099,2]
[346798593,1735296644365,-755.67,0.0001099,2]
[346798594,1735296644374,-893.62,0.0001099,2]
[346798595,1735296644383,-730.39,0.0001099,2]
[346798596,1735296644394,-500.0,0.0001099,2]
[346798597,1735296644405,-500.0,0.0001099,2]
[346798599,1735296644414,-500.0,0.0001099,2]
[346798601,1735296644426,-500.0,0.0001099,2]
[346798603,1735296644436,-552.54,0.0001099,2]
[346798605,1735296644445,-605.23850026,0.0001099,2]
[346798607,1735296644454,-500.0,0.0001099,2]
[346798609,1735296644464,-500.0,0.0001099,2]
[346798611,1735296644475,-500.0,0.0001099,2]
[346798613,1735296644484,-500.0,0.0001099,2]
[346798615,1735296644494,-500.0,0.0001099,2]
[346798617,1735296644504,-731.44,0.0001099,2]
[346798619,1735296644514,-500.0,0.0001099,2]
[346798621,1735296644524,-500.0,0.0001099,2]
[346798623,1735296644533,-500.0,0.0001099,2]
[346798625,1735296644543,-500.0,0.0001099,2]
[346798627,1735296644553,-501.02958867,0.0001099,2]
[346798629,1735296644562,-853.34,0.0001099,2]
[346798631,1735296644571,-500.0,0.0001099,2]
[346798633,1735296644581,-1099.79,0.0001099,2]
[346798635,1735296644592,-500.0,0.0001099,2]
[346798637,1735296644601,-500.0,0.0001099,2]
[346798639,1735296644610,-511.90559221,0.0001099,2]
[346798641,1735296644620,-500.0,0.0001099,2]
[346798643,1735296644629,-500.0,0.0001099,2]
[346798645,1735296644639,-500.0,0.0001099,2]
[346798647,1735296644648,-500.0,0.0001099,2]
[346798649,1735296644657,-500.0,0.0001099,2]
[346798651,1735296644667,-500.0,0.0001099,2]
[346798653,1735296644676,-500.0,0.0001099,2]
[346798655,1735296644686,-500.0,0.0001099,2]
[346798657,1735296644695,-996.79,0.0001099,2]
[346798659,1735296644705,-973.28,0.0001099,2]
[346798661,1735296644715,-500.0,0.0001099,2]
[346798663,1735296644724,-513.07384107,0.0001099,2]
[346798665,1735296644733,-500.0,0.0001099,2]
[346798667,1735296644743,-1361.33,0.0001099,2]
[346798669,1735296644752,-500.0,0.0001099,2]
[346798671,1735296644762,-500.0,0.0001099,2]
[346798673,1735296644771,-500.0,0.0001099,2]
[346798675,1735296644781,-1687.33,0.0001099,2]
[346798677,1735296644792,-516.96940883,0.0001099,2]
[346798679,1735296644801,-844.07,0.0001099,2]
[346798681,1735296644811,-457.47144946,0.0001099,2]
[346798683,1735296644820,-500.0,0.0001099,2]
[346798685,1735296644829,-500.0,0.0001099,2]
[346798687,1735296644839,-1155.58,0.0001099,2]
[346798689,1735296644850,-500.0,0.0001099,2]
[346798691,1735296644860,-500.0,0.0001099,2]
[346798693,1735296644870,-500.0,0.0001099,2]
[346798695,1735296644879,-1579.63,0.0001099,2]
[346798697,1735296644889,-983.02,0.0001099,2]
[346798699,1735296644898,-500.0,0.0001099,2]
[346798701,1735296644908,-1896.52,0.0001099,2]
[346798703,1735296644917,-500.0,0.0001099,2]
[346798705,1735296644927,-500.0,0.0001099,2]
[346798707,1735296644937,-500.0,0.0001099,2]
[346798709,1735296644947,-500.0,0.0001099,2]
[346798711,1735296644956,-707.58,0.0001099,2]
[346798713,1735296644966,-500.0,0.0001099,2]
[346798715,1735296644975,-547.14,0.0001099,2]
[346798717,1735296644985,-500.0,0.0001099,2]
[346798719,1735296644995,-500.0,0.0001099,2]
[346798721,1735296645004,-500.0,0.0001099,2]
[346798723,1735296645013,-896.23,0.0001099,2]
[346798725,1735296645023,-500.0,0.0001099,2]
[346798727,1735296645032,-500.0,0.0001099,2]
[346798729,1735296645042,-500.0,0.0001099,2]
[346798731,1735296645051,-500.0,0.0001099,2]
[346798733,1735296645060,-500.0,0.0001099,2]
[346798735,1735296645069,-500.0,0.0001099,2]
[346798737,1735296645079,-500.0,0.0001099,2]
[346798739,1735296645089,-500.0,0.0001099,2]
[346798741,1735296645101,-1182.84,0.0001099,2]
[346798743,1735296645110,-700.5,0.0001099,2]
[346798745,1735296645120,-500.0,0.0001099,2]
[346798747,1735296645129,-691.48,0.0001099,2]
[346798749,1735296645138,-1242.93,0.0001099,2]
[346798751,1735296645148,-500.0,0.0001099,2]
[346798753,1735296645157,-500.0,0.0001099,2]
[346798755,1735296645167,-500.0,0.0001099,2]
[346798757,1735296645176,-540.93740787,0.0001099,2]
[346798759,1735296645186,-500.0,0.0001099,2]
[346798761,1735296645196,-500.0,0.0001099,2]
[346798764,1735296645414,-500.0,0.0001099,2]
[346798765,1735296645425,-1053.49,0.0001099,2]
[346798766,1735296645438,-1012.85,0.0001099,2]
[346798767,1735296645448,-500.0,0.0001099,2]
[346798768,1735296645458,-500.0,0.0001099,2]
[346798769,1735296645468,-1156.08,0.0001099,2]
[346798770,1735296645479,-500.0,0.0001099,2]
[346798771,1735296645489,-500.0,0.0001099,2]
[346798772,1735296645498,-500.0,0.0001099,2]
[346798773,1735296645508,-1265.4,0.0001099,2]
[346798774,1735296645518,-500.0,0.0001099,2]
[346798775,1735296645529,-500.74353376,0.0001099,2]
[346798776,1735296645539,-500.0,0.0001099,2]
[346798779,1735296645549,-530.46,0.0001099,2]
[346798780,1735296645558,-500.0,0.0001099,2]
[346798781,1735296645568,-1851.27,0.0001099,2]
[346798782,1735296645577,-500.0,0.0001099,2]
[346798783,1735296645587,-558.68,0.0001099,2]
[346798784,1735296645599,-500.0,0.0001099,2]
[346798785,1735296645609,-821.79,0.0001099,2]
[346798786,1735296645618,-500.0,0.0001099,2]
[346798787,1735296645628,-500.0,0.0001099,2]
[346798788,1735296645637,-500.0,0.0001099,2]
[346798789,1735296645647,-500.0,0.0001099,2]
[346798790,1735296645657,-500.0,0.0001099,2]
[346798791,1735296645667,-2680.95,0.0001099,2]
[346798792,1735296645677,-768.13,0.0001099,2]
[346798793,1735296645686,-500.0,0.0001099,2]
[346798794,1735296645696,-917.2,0.0001099,2]
[346798795,1735296645707,-875.99,0.0001099,2]
[346798796,1735296645716,-1140.94,0.0001099,2]
[346798797,1735296645726,-500.0,0.0001099,2]
[346798798,1735296645736,-500.0,0.0001099,2]
[346798799,1735296645746,-500.0,0.0001099,2]
[346798800,1735296645756,-14143.88,0.0001099,2]
[346798801,1735296645766,-500.0,0.0001099,2]
[346798802,1735296645776,-500.0,0.0001099,2]
[346798803,1735296645785,-349.15368882,0.0001099,2]
[346798804,1735296645795,-500.0,0.0001099,2]
[346798805,1735296645805,-500.0,0.0001099,2]
[346798806,1735296645815,-1887.88,0.0001099,2]
[346798807,1735296645825,-1223.85,0.0001099,2]
[346798808,1735296645835,-500.0,0.0001099,2]
[346798809,1735296645846,-500.0,0.0001099,2]
[346798810,1735296645856,-500.0,0.0001099,2]
[346798811,1735296645866,-504.3316507,0.0001099,2]
[346798812,1735296645877,-550.5632399,0.0001099,2]
[346798813,1735296645886,-1193.6,0.0001099,2]
[346798814,1735296645896,-500.0,0.0001099,2]
[346798815,1735296645906,-834.33,0.0001099,2]
[346798816,1735296645915,-4701.46,0.0001099,2]
[346798817,1735296645925,-500.0,0.0001099,2]
[346798818,1735296645935,-889.35,0.0001099,2]
[346798819,1735296645945,-500.0,0.0001099,2]
[346798820,1735296645954,-18302.86,0.0001099,2]
[346798821,1735296645964,-711.65,0.0001099,2]
[346798822,1735296645974,-500.0,0.0001099,2]
[346798823,1735296645983,-500.0,0.0001099,2]
[346798824,1735296645993,-500.0,0.0001099,2]
[346798825,1735296646002,-7500.0,0.0001099,2]
[346798826,1735296646011,-500.0,0.0001099,2]
[346798827,1735296646021,-500.0,0.00010991,2]
[346798828,1735296646031,-500.0,0.00010991,2]
[346798829,1735296646040,-875.56,0.00010991,2]
[346798830,1735296646049,-508.16064713,0.00010991,2]
[346798831,1735296646059,-668.5,0.00010991,2]
[346798832,1735296646068,-500.0,0.00010991,2]
[346798833,1735296646078,-500.0,0.00010991,2]
[346798834,1735296646087,-500.0,0.00010991,2]
[346798835,1735296646099,-500.0,0.00010991,2]
[346798836,1735296646108,-857.62,0.00010991,2]
[346798837,1735296646118,-557.3,0.00010991,2]
[346798838,1735296646127,-500.0,0.00010991,2]
[346798839,1735296646137,-630.24,0.00010991,2]
[346798840,1735296646147,-500.0,0.00010991,2]
[346798841,1735296646156,-500.0,0.00010991,2]
[346798842,1735296646166,-500.0,0.00010991,2]
[346798843,1735296646176,-500.0,0.00010991,2]
[346798844,1735296646186,-500.0,0.00010991,2]
[346798845,1735296646194,-500.0,0.00010991,2]
[346798846,1735296646204,-500.0,0.00010991,2]
[346798847,1735296646213,-500.0,0.00010991,2]
[346798848,1735296646223,-500.0,0.00010991,2]
[346798849,1735296646233,-500.0,0.00010991,2]
[346798850,1735296646243,-500.0,0.00010991,2]
[346798851,1735296646253,-500.0,0.00010991,2]
[346798852,1735296646262,-500.0,0.00010991,2]
[346798853,1735296646271,-346.74171041,0.00010991,2]
[346798854,1735296646281,-500.0,0.00010991,2]
[346798855,1735296646291,-527.34,0.00010991,2]
[346798856,1735296646300,-500.0,0.00010991,2]
[346798857,1735296646310,-500.0,0.00010991,2]
[346798858,1735296646320,-500.0,0.00010991,2]
[346798859,1735296646329,-500.0,0.00010991,2]
[346798860,1735296646339,-500.0,0.00010991,2]
[346798862,1735296646352,-500.0,0.00010991,2]
[346798864,1735296646361,-500.0,0.00010991,2]
[346798866,1735296646371,-481.2016855,0.00010991,2]
[346798868,1735296646381,-500.0,0.00010991,2]
[346798870,1735296646391,-500.0,0.00010991,2]
[346798872,1735296646400,-500.0,0.00010991,2]
[346798874,1735296646409,-500.0,0.00010991,2]
[346798876,1735296646419,-508.79906001,0.00010991,2]
[346798878,1735296646432,-500.0,0.00010991,2]
[346798880,1735296646442,-500.0,0.00010991,2]
[346798882,1735296646452,-532.72,0.00010991,2]
[346798884,1735296646462,-500.0,0.00010991,2]
[346798886,1735296646473,-501.16119606,0.00010991,2]
[346798888,1735296646482,-1118.83,0.00010991,2]
[346798890,1735296646491,-500.0,0.00010991,2]
[346798892,1735296646501,-500.0,0.00010991,2]
[346798894,1735296646511,-730.01,0.00010991,2]
[346798896,1735296646521,-825.39,0.00010991,2]
[346798898,1735296646531,-500.0,0.00010991,2]
[346798900,1735296646541,-561.98,0.00010991,2]
[346798902,1735296646550,-722.98,0.00010991,2]
[346798904,1735296646559,-500.0,0.00010991,2]
[346798906,1735296646569,-500.0,0.00010991,2]
[346798908,1735296646578,-500.0,0.00010991,2]
[346798910,1735296646587,-500.0,0.00010991,2]
[346798912,1735296646600,-500.0,0.00010991,2]
[346798914,1735296646610,-500.0,0.00010991,2]
[346798916,1735296646621,-500.0,0.00010991,2]
[346798918,1735296646631,-500.0,0.00010991,2]
[346798920,1735296646641,-500.0,0.00010991,2]
[346798921,1735296646650,-500.0,0.00010991,2]